fUSD/lending_fUSD_20240322
["ID","MTS","AMOUNT","RATE_DAILY","PERIOD"]
[320027579,1711079442556,-53699.22526199,0.00017999,2]
[320027580,1711079442680,-595530.00000008,0.00017999,2]
[320027581,1711079442758,-459.71616031,0.00017999,2]
[320027582,1711079442770,-11273.72063841,0.00017999,2]
[320027583,1711079442781,-2072.75015625,0.00017999,2]
[320027584,1711079442855,-692.45653949,0.00017999,2]
[320027585,1711079442867,-3000.0,0.00017999,2]
[320027586,1711079442879,-11500.0,0.00017999,2]
[320027587,1711079442904,-754.75940659,0.00017999,2]
[320027588,1711079442994,-549.32157576,0.00017999,2]
[320027604,1711079445518,-286.09779877,0.00017999,2]
[320027612,1711079445586,-744204.92105405,0.00017999,2]
[320027613,1711079445652,-255.0,0.00017999,2]
[320027614,1711079445779,-1113.68979438,0.00017999,2]
[320027616,1711079463991,-1926.08463668,0.0002189,5]
[320027617,1711079464015,-58073.91536332,0.0002199,5]
[320027622,1711079850194,250.18,0.00015847,2]
[320027623,1711080349502,8665.00094281,0.00022,30]
[320027624,1711080370442,246.37,0.00015251,2]
[320027790,1711080631706,-202.85887767,0.00016969,2]
[320027792,1711080631716,-150.57,0.0001697,2]
[320027793,1711080631727,-226.54955433,0.00017006,2]
[320027794,1711080631767,-663.70337911,0.00017006,2]
[320027795,1711080631900,-338.62526117,0.00017006,2]
[320027796,1711080631910,-121.12797618,0.00017009,2]
[320027797,1711080631954,-3806.8330609,0.00017009,2]
[320027798,1711080631966,-1761.68896292,0.00017009,2]
[320027799,1711080631975,-250.0,0.00017128,2]
[320027800,1711080631985,-250.0,0.00017152,2]
[320027801,1711080631995,-601.2,0.00017152,2]
[320027802,1711080632004,-1007.12,0.0001716,2]
[320027803,1711080632019,-163.40122595,0.00017228,2]
[320027804,1711080632033,-264.71,0.00017266,2]
[320027805,1711080632045,-398.8,0.00017343,2]
[320027806,1711080632058,-150.57,0.00017412,2]
[320027807,1711080632071,-246.37,0.00017515,2]
[320027808,1711080632082,-150.0,0.00017568,2]
[320027809,1711080632093,-427.564,0.00017725,2]
[320027810,1711080632103,-4766.0,0.00017725,2]
[320027811,1711080632115,-42920.0,0.00017725,2]
[320027812,1711080632129,-150.0,0.00017726,2]
[320027813,1711080632143,-154.95,0.00017745,2]
[320027816,1711080632155,-250.85014333,0.00017817,2]
[320027818,1711080632171,-3000.0,0.0001782,2]
[320027820,1711080632183,-150.57,0.00017854,2]
[320027822,1711080632195,-200.0,0.00017855,2]
[320027825,1711080632208,-200.0,0.00017856,2]
[320027827,1711080632219,-800.0,0.00017856,2]
[320027829,1711080632230,-200.0,0.00017856,2]
[320027831,1711080632241,-154.95,0.00017871,2]
[320027834,1711080632253,-3688.6919799,0.00017899,2]
[320027836,1711080632265,-1871.58927943,0.000179,2]
[320027838,1711080632277,-1867.6338,0.000179,2]
[320027840,1711080632288,-23189.6035,0.000179,2]
[320027842,1711080632300,-176.97305337,0.000179,2]
[320027845,1711080632311,-19128.7066,0.000179,2]
[320027847,1711080632324,-7500.0,0.000179,2]
[320027849,1711080632335,-235.56091496,0.000179,2]
[320027851,1711080632347,-1215.1880266,0.000179,2]
[320027853,1711080632359,-800.0,0.00017973,2]
[320027855,1711080632369,-408.89933385,0.00017997,2]
[320027857,1711080632379,-948.34842131,0.00017997,2]
[320027859,1711080632389,-155.0,0.00017997,2]
[320027861,1711080632402,-1246.06984855,0.00017998,2]
[320027863,1711080632414,-6809.98114451,0.00017998,2]
[320027864,1711080632425,-234.032209,0.00017998,2]
[320027865,1711080632438,-234.032209,0.00017998,2]
[320027866,1711080632450,-234.032209,0.00017998,2]
[320027867,1711080632461,-234.032209,0.00017998,2]
[320027868,1711080632472,-234.032209,0.00017998,2]
[320027869,1711080632484,-234.032209,0.00017998,2]
[320027870,1711080632494,-234.032209,0.00017998,2]
[320027871,1711080632506,-154.95,0.00017998,2]
[320027872,1711080632518,-123022.10349072,0.00017999,2]
[320027873,1711080632529,-1616.56906465,0.00017999,2]
[320027874,1711080632541,-250.0,0.00017999,2]
[320027875,1711080632553,-50000.0,0.00018,2]
[320027876,1711080632566,-434525.60633207,0.00018,2]
[320027886,1711080637646,-251.38495243,0.000179,2]
[320027887,1711080637657,-1339.48814161,0.00017999,2]
[320027888,1711080637716,-75.00978996,0.00017999,2]
[320027889,1711080637727,-770.01021004,0.00018,2]
[320027890,1711080637741,-7402.51562397,0.00018,2]
[320027891,1711080637754,-5172.58069539,0.00018,2]
[320027892,1711080637769,-2625.270672,0.00018,2]
[320027893,1711080637781,-2143.8,0.00018,2]
[320027894,1711080637794,-2655.83300864,0.00018,2]
[320027895,1711080637944,-28759.03188515,0.00018,2]
[320027896,1711080638056,-1550.0,0.00018,2]
[320027927,1711080642711,-1237.68569012,0.00017999,2]
[320027928,1711080642721,-1919.03406368,0.00018,2]
[320027929,1711080642777,-122690.53515019,0.00018,2]
[320027930,1711080642786,-19385.30234096,0.00018,2]
[320027931,1711080642795,-333837.52662858,0.00018,2]
[320027932,1711080642804,-1468.86583408,0.00018,2]
[320027933,1711080642813,-151.0,0.00018,2]
[320027934,1711080642822,-150.103,0.00018,2]
[320027935,1711080642831,-150.0,0.00018,2]
[320027936,1711080642840,-150.141,0.00018,2]
[320027937,1711080642849,-150.153,0.00018,2]
[320027938,1711080642858,-150.0,0.00018,2]
[320027939,1711080642867,-116724.37304685,0.00018,2]
[320027940,1711080642963,-2033.70055455,0.00018,2]
[320027949,1711080645821,-1082.97497886,0.00017999,2]
[320027950,1711080645831,-2067.41835208,0.00018,2]
[320027951,1711080645843,-15403.16038208,0.00018,2]
[320027952,1711080645989,-473.05077416,0.00018,2]
[320027953,1711080646002,-401.54034067,0.00018,2]
[320027954,1711080646049,-932.04458442,0.00018,2]
[320027955,1711080646062,-729.84447546,0.00018,2]
[320027956,1711080646111,-547.84176427,0.00018,2]
[320027957,1711080646228,-465.38955513,0.00018,2]
[320027964,1711080684574,7464.24239889,0.00015251,2]
[320027965,1711080702568,2889.78570743,0.00015251,2]
[320027967,1711080789989,1033.06129764,0.00015251,2]
[320027968,1711080792120,546.32237878,0.00015212,2]
[320027969,1711081230116,-202.85887767,0.00016799,2]
[320027970,1711081230142,-1228.87819461,0.000168,2]
[320027971,1711081230163,-441.02613942,0.00016801,2]
[320027972,1711081230185,-163.40122595,0.00016805,2]
[320027973,1711081230207,-452.32832771,0.00016917,2]
[320027974,1711081230228,-264.71,0.00016918,2]
[320027975,1711081230249,-250.0,0.00016988,2]
[320027976,1711081253902,221.73,0.00015109,2]
[320027977,1711081349760,202.85887767,0.00016999,2]
[320027978,1711081350729,-1228.87819461,0.00017,2]
[320027979,1711081464416,-1228.87819461,0.00017002,2]
[320027980,1711081464438,-163.40122595,0.00017024,2]
[320027981,1711081464460,-150.57,0.00017086,2]
[320027982,1711081464480,-250.0,0.00017154,2]
[320027983,1711081464502,-821.59,0.00017186,2]
[320027984,1711081464522,-163.40122595,0.00017243,2]
[320027985,1711081464544,-221.73,0.00017373,2]
[320027986,1711081464565,-150.57,0.00017382,2]
[320027987,1711081464586,-163.40122595,0.00017462,2]
[320027988,1711081464608,-519.04,0.00017605,2]
[320027989,1711081464628,-499.99,0.00017605,2]
[320027990,1711081464648,-150.57,0.00017679,2]
[320027991,1711081464671,-163.40122595,0.00017681,2]
[320027992,1711081464694,-185.62,0.00017748,2]
[320027993,1711081464714,-150.0,0.00017798,2]
[320027994,1711081464734,-4486.7426,0.00017799,2]
[320027995,1711081464753,-1251.9739384,0.00017799,2]
[320027996,1711081464773,-3000.0,0.0001782,2]
[320027997,1711081464793,-800.0,0.00017855,2]
[320027998,1711081464814,-200.0,0.00017855,2]
[320027999,1711081464833,-345.680452,0.00017856,2]
[320028000,1711081464855,-800.0,0.00017856,2]
[320028001,1711081464874,-800.0,0.00017856,2]
[320028002,1711081464894,-200.0,0.00017856,2]
[320028003,1711081464914,-200.0,0.00017856,2]
[320028004,1711081464934,-2357.99332057,0.00017889,2]
[320028005,1711081464955,-202.59819599,0.00017897,2]
[320028006,1711081464974,-451.8127066,0.00017898,2]
[320028007,1711081464994,-1000.0,0.00017899,2]
[320028008,1711081465014,-47161.03568803,0.00017899,2]
[320028009,1711081482296,-8874.0,0.00017899,2]
[320028010,1711081483705,703.99626519,0.0001275,2]
[320028011,1711081516893,178.6,0.00016918,2]
[320028012,1711081582880,-1228.87819461,0.00017003,2]
[320028013,1711081582900,-168.209269,0.00017534,2]
[320028014,1711081582921,-1000.0,0.00017832,2]
[320028015,1711081582941,-250.0,0.00017882,2]
[320028016,1711081582961,-613.55627316,0.00017898,2]
[320028017,1711081582993,-1083.72,0.00017898,2]
[320028018,1711081583016,-3595.96791197,0.00017899,2]
[320028019,1711081583039,-213.8617,0.00017899,2]
[320028020,1711081583061,-165683.80665126,0.00017899,2]
[320028024,1711081688924,258.77,0.00016135,2]
[320028043,1711081831955,-833.36001832,0.00017097,2]
[320028044,1711081831967,-395.51817629,0.00017097,2]
[320028045,1711081831977,-141.60198555,0.00017488,2]
[320028055,1711081832307,-48.49178353,0.00017488,2]
[320028057,1711081832321,-2560.90623092,0.00017488,2]
[320028059,1711081832331,-151.388342,0.00017534,2]
[320028061,1711081832341,-150.0,0.00017668,2]
[320028063,1711081832350,-5000.0,0.00017686,2]
[320028065,1711081832359,-2614.032,0.00017798,2]
[320028067,1711081832368,-3000.0,0.0001782,2]
[320028069,1711081832377,-46503.39342756,0.00017899,2]
[320028082,1711081832498,-2815.80071661,0.00017899,2]
[320028087,1711081832536,500.0,0.00016976,2]
[320028089,1711081832549,-500.0,0.00017899,2]
[320028091,1711081832560,-561.51132701,0.00017899,2]
[320028095,1711081832590,-653.43369802,0.00017899,2]
[320028156,1711081837879,-2475.66949071,0.00017899,2]
[320028157,1711081837890,-328.92787868,0.00017899,2]
[320028158,1711081838155,-25477.45681015,0.00017899,2]
[320028159,1711081838165,-1251.9739384,0.00017899,2]
[320028160,1711081838174,-1922.42103051,0.00017899,2]
[320028161,1711081838185,-163.7480105,0.00017899,2]
[320028162,1711081838195,-444.41493382,0.00017899,2]
[320028163,1711081838204,-3461.1055873,0.000179,2]
[320028164,1711081838213,-163.40122595,0.000179,2]
[320028165,1711081838223,-1135.35329999,0.000179,2]
[320028166,1711081838232,-7500.0,0.000179,2]
[320028167,1711081838241,-210.61,0.00017944,2]
[320028168,1711081838250,-150.57,0.00017976,2]
[320028170,1711081838259,-192.79513505,0.00017989,2]
[320028171,1711081838268,-555.25118339,0.00017997,2]
[320028172,1711081838278,-155.67279039,0.00017997,2]
[320028173,1711081838287,-733.81825966,0.00017998,2]
[320028174,1711081838296,-234.032209,0.00017998,2]
[320028175,1711081838306,-234.032209,0.00017998,2]
[320028176,1711081838314,-234.032209,0.00017998,2]
[320028177,1711081838323,-234.032209,0.00017998,2]
[320028178,1711081838333,-234.032209,0.00017998,2]
[320028179,1711081838342,-234.032209,0.00017998,2]
[320028180,1711081838351,-234.032209,0.00017998,2]
[320028181,1711081838362,-243.70168594,0.00017999,2]
[320028182,1711081838371,-947.6031065,0.00017999,2]
[320028183,1711081838380,-1457928.16114861,0.00017999,2]
[320028184,1711081838412,-568.59559293,0.00017999,2]
[320028185,1711081838435,-362.26956143,0.00017999,2]
[320028186,1711081838448,-574.77401036,0.00017999,2]
[320028187,1711081838461,-3499.8,0.00017999,2]
[320028190,1711081840018,-660.95772261,0.00017999,2]
[320028191,1711081840108,-1202.94291966,0.00017999,2]
[320028192,1711081840160,-173982.97553258,0.00017999,2]
[320028204,1711081842991,-15764.84130408,0.00017999,2]
[320028205,1711081843009,-2974.98810027,0.00017999,2]
[320028206,1711081843021,-1292.24169778,0.00017999,2]
[320028207,1711081843075,-696.48469889,0.00017999,2]
[320028222,1711081845937,-4295.73699867,0.00017999,2]
[320028223,1711081845948,-499.99,0.00017999,2]
[320028224,1711081845958,-213491.7180458,0.00018,2]
[320028225,1711081845970,-32481.53867302,0.00018,2]
[320028226,1711081846029,-13420.12950116,0.00018,2]
[320028227,1711081846112,-1799.1749,0.00018,2]
[320028228,1711081846123,-17579.08263215,0.00018,2]
[320028229,1711081846135,-32994.81979584,0.00018,2]
[320028230,1711081846175,-531.58342595,0.00018,2]
[320028232,1711081853259,250.0,0.00016976,2]
[320028242,1711082045600,2913.04,0.00016976,2]
[320028243,1711082085931,200.0,0.00016976,2]
[320028244,1711082109514,12235.40083513,0.00016976,2]
[320028245,1711082194614,210.61,0.00016976,2]
[320028260,1711082568826,-245.83,0.00017282,2]
[320028261,1711082568850,-408.61867044,0.00017459,2]
[320028262,1711082568872,-800.0,0.00017856,2]
[320028263,1711082568893,-200.0,0.00017856,2]
[320028264,1711082568913,-7500.0,0.000179,2]
[320028265,1711082568934,-1000.0,0.000179,2]
[320028266,1711082568955,-3222.70998186,0.000179,2]
[320028267,1711082568976,-14334.3891,0.000179,2]
[320028268,1711082568996,-12122.2537332,0.000179,2]
[320028273,1711082727737,362.61335731,0.00014398,2]
[320028274,1711082739641,2526.1837613,0.00013425,2]
[320028278,1711082956545,300.0,0.00016947,2]
[320028281,1711083032111,-233.53,0.00017047,2]
[320028282,1711083032121,-1459.2888727,0.00017818,2]
[320028283,1711083032170,-365.35210606,0.00017818,2]
[320028284,1711083032416,-59.91796199,0.00017818,2]
[320028285,1711083032426,-294.52443388,0.00017819,2]
[320028286,1711083032933,-4010.51006242,0.00017819,2]
[320028287,1711083032955,-3000.0,0.0001782,2]
[320028288,1711083032981,-4624.5619668,0.000179,2]
[320028289,1711083033005,-7500.0,0.000179,2]
[320028290,1711083033026,-2500.0,0.000179,2]
[320028291,1711083033047,-442.41196879,0.000179,2]
[320028292,1711083033068,-9899.74103235,0.000179,2]
[320028293,1711083033088,-167.5899683,0.000179,2]
[320028294,1711083033109,-568.61,0.0001799,3]
[320028295,1711083033131,-452.19982587,0.00017998,2]
[320028296,1711083033150,-202.79370725,0.00017998,2]
[320028297,1711083033171,-198.92431824,0.00017998,2]
[320028298,1711083033191,-537.38041041,0.00017998,2]
[320028299,1711083033213,-2173.58056167,0.00017998,2]
[320028300,1711083033234,-522.13757327,0.00017998,2]
[320028301,1711083033255,-3519.24562748,0.00017998,2]
[320028302,1711083033275,-2468.91976852,0.00017998,2]
[320028303,1711083033296,-947.6031065,0.00017999,2]
[320028304,1711083033317,-250.0,0.00017999,2]
[320028305,1711083033338,-27348.78915932,0.00018,2]
[320028328,1711083038052,-812.23123414,0.00017999,2]
[320028330,1711083038061,-481.16010206,0.00018,2]
[320028334,1711083038086,-4396.89544198,0.00018,2]
[320028342,1711083038163,-1018.50798502,0.00018,2]
[320028356,1711083038330,-325.87134922,0.00018,2]
[320028359,1711083040413,-269.75099589,0.00018,2]
[320028360,1711083040424,-29344.11604973,0.00018,2]
[320028361,1711083040444,-1011.15196253,0.00018,2]
[320028362,1711083040456,-13877.77389802,0.00018,2]
[320028363,1711083040467,-2256.08218684,0.00018,2]
[320028366,1711083043129,-696.19820069,0.00017999,2]
[320028367,1711083043138,-2302.20150016,0.00018,2]
[320028369,1711083043309,-500.0,0.00018,2]
[320028381,1711083046300,-2791.08186032,0.00017999,2]
[320028382,1711083046309,-3159.02657334,0.00018,2]
[320028383,1711083046323,-49422.73874487,0.00018,2]
[320028384,1711083047340,-642.74461224,0.00017998,2]
[320028385,1711083047361,-11336.8842609,0.00017998,2]
[320028386,1711083047382,-596.74131488,0.00017999,2]
[320028387,1711083047405,-7423.62981198,0.00018,2]
[320028388,1711083063432,3270.63206387,0.00016947,2]
[320028390,1711083170069,449.61243464,0.00016824,2]
[320028406,1711083268063,12063.16673985,0.00015,2]
[320028407,1711083268084,5379.8734768,0.00015,2]
[320028420,1711083644383,260.53,0.00015699,2]
[320028421,1711083697806,2526.7204554,0.00012,2]
[320028422,1711083710327,1937.29167749,0.00015699,2]
[320028423,1711083712888,291.47525254,0.00015699,2]
[320028424,1711083715751,2526.7204554,0.00012,2]
[320028425,1711083731751,2526.7204554,0.00012,2]
[320028426,1711083751770,1243.33238954,0.00012,2]
[320028429,1711084090933,67288.31522462,0.0002201,29]
[320028465,1711084232966,-984.0,0.00016813,2]
[320028469,1711084232978,-266.95294903,0.00016813,2]
[320028477,1711084233072,-7876.43527198,0.00016813,2]
[320028478,1711084233084,-885.9549519,0.00016813,2]
[320028479,1711084233095,-1284.35585131,0.00016813,2]
[320028481,1711084233106,-39.18523668,0.00016813,2]
[320028483,1711084233115,-582.99179805,0.00016814,2]
[320028485,1711084233127,-2194.55656055,0.00016814,2]
[320028488,1711084233143,-412.83195705,0.00016814,2]
[320028490,1711084233155,-100.54968435,0.00016814,2]
[320028492,1711084233164,-250.0,0.00016841,2]
[320028494,1711084233174,-250.0,0.00016849,2]
[320028496,1711084233183,-459.11,0.00016884,2]
[320028498,1711084233192,-1681.96706505,0.00016906,2]
[320028500,1711084233204,-562.34159793,0.00016906,2]
[320028503,1711084233220,-21655.69133702,0.00016906,2]
[320028504,1711084233229,-156.15,0.00016961,2]
[320028505,1711084233238,-150.0,0.00016961,2]
[320028506,1711084233247,-8707.18,0.00016963,2]
[320028507,1711084233256,-160.0,0.00016963,2]
[320028508,1711084233265,-174.97,0.00017086,2]
[320028509,1711084233277,-200.0,0.00017144,2]
[320028510,1711084233286,-8426.85468824,0.00017289,2]
[320028511,1711084233295,-174.97,0.00017299,2]
[320028512,1711084233304,-174.97,0.00017513,2]
[320028513,1711084233313,-193.18174108,0.00017516,2]
[320028514,1711084233322,-619.91,0.00017559,2]
[320028515,1711084233331,-840.0,0.00017685,2]
[320028516,1711084233341,-193.18174107,0.00017708,2]
[320028517,1711084233350,-174.97,0.00017726,2]
[320028518,1711084233359,-10624.477,0.0001777,2]
[320028519,1711084233369,-4766.0,0.0001777,2]
[320028520,1711084233378,-800.0,0.00017856,2]
[320028521,1711084233387,-200.0,0.00017856,2]
[320028522,1711084233396,-406.61908145,0.00017898,2]
[320028523,1711084233406,-2659.07605427,0.00017899,2]
[320028524,1711084233415,-30864.7780856,0.000179,2]
[320028529,1711084233446,-380.08626854,0.000179,2]
[320028532,1711084233458,-1968.95746078,0.000179,2]
[320028534,1711084233471,-360.15068696,0.000179,2]
[320028537,1711084233484,-256.94043857,0.000179,2]
[320028540,1711084233502,-800.0,0.000179,2]
[320028542,1711084233519,-1041.76,0.000179,2]
[320028544,1711084233536,-820.5235799,0.000179,2]
[320028547,1711084238278,-42610.93977965,0.000179,2]
[320028548,1711084238287,-6632.9748,0.000179,2]
[320028549,1711084238297,-181.00662585,0.000179,2]
[320028550,1711084238306,-5645.20631308,0.000179,2]
[320028551,1711084238317,-4825.7237,0.000179,2]
[320028552,1711084238326,-193.18174107,0.000179,2]
[320028553,1711084238335,-7500.0,0.000179,2]
[320028554,1711084238345,-243.99559378,0.000179,2]
[320028555,1711084238354,-2000.0,0.000179,2]
[320028556,1711084238364,-294.94131254,0.000179,2]
[320028557,1711084238373,-174.97,0.0001794,2]
[320028558,1711084238382,-260.53,0.00017963,2]
[320028559,1711084238392,-237.45652571,0.00017998,2]
[320028560,1711084238401,-642.74461224,0.00017998,2]
[320028561,1711084238410,-596.74131488,0.00017999,2]
[320028562,1711084238420,-128171.47115909,0.00018,2]
[320028563,1711084238431,-11940.0,0.00018,2]
[320028564,1711084238456,-1811.90215072,0.00018,2]
[320028565,1711084238468,-311.184893,0.00018,2]
[320028566,1711084238714,-356.97,0.00018,2]
[320028567,1711084238751,-1557.35318063,0.00018,2]
[320028572,1711084240399,-99407.72235621,0.00018,2]
[320028573,1711084240411,-290.62858428,0.00018,2]
[320028574,1711084240718,-1661.84902872,0.00018,2]
[320028577,1711084243325,-1789.85713285,0.00018,2]
[320028578,1711084243388,-11289.93243324,0.00018,2]
[320028579,1711084243445,-760.88440293,0.00018,2]
[320028580,1711084243562,-500.0,0.00018,2]
[320028581,1711084243727,-4843.21989905,0.00018,2]
[320028582,1711084243740,-3042.67347304,0.00018,2]
[320028583,1711084243752,-10674.32695209,0.00018,2]
[320028584,1711084243763,-812.70776791,0.00018,2]
[320028665,1711084246369,-511.49255561,0.00017999,2]
[320028666,1711084246379,-8802.53394704,0.00018,2]
[320028667,1711084246544,-768.0,0.00018,2]
[320028668,1711084246601,-26624.700004,0.00018,2]
[320028669,1711084246613,-2502.63206387,0.00018,2]
[320028670,1711084246698,-145501.33570319,0.00018,2]
[320028671,1711084246710,-435499.08108221,0.00018,2]
[320028676,1711084265300,544.23131536,0.00015298,2]
[320028678,1711084554035,157633.10452207,0.00015298,2]
[320028679,1711084554063,7934.69823795,0.00015298,2]
[320028680,1711084557996,150.0,0.00014398,2]
[320028681,1711084558025,212.61335731,0.00014398,2]
[320028682,1711084573853,2526.1837613,0.00012,2]
[320028683,1711084773569,-150.0,0.00015297,2]
[320028684,1711084773590,-4850.0,0.00015298,2]
[320028685,1711084823252,-10536.41047849,0.00015298,2]
[320028686,1711084911615,544.23131536,0.00015298,2]
[320028687,1711084914506,1937.29167749,0.00015298,2]
[320028688,1711084917923,2527.39311144,0.00012,2]
[320028689,1711084933867,2527.39311144,0.00012,2]
[320028690,1711084953873,2525.37514332,0.00012,2]
[320028691,1711084977877,1243.33238954,0.00012,2]
[320028692,1711084979259,291.47525254,0.00012,2]
[320028693,1711085003518,546.32237878,0.00015298,2]
[320028694,1711085030676,1033.06129764,0.00014,2]
[320028695,1711085103897,156.794751,0.00023836,120]
[320028696,1711085119006,150.0,0.00025099,120]
[320028697,1711085285516,-285.7,0.00015867,2]
[320028698,1711085285540,-449.61243464,0.00016918,2]
[320028699,1711085285564,-300.0,0.00017508,2]
[320028700,1711085285588,-250.0,0.00017564,2]
[320028701,1711085285613,-250.0,0.00017568,2]
[320028702,1711085285637,-150.0,0.00017569,2]
[320028703,1711085285662,-2193.28,0.00017642,2]
[320028704,1711085285685,-1141.9544,0.000178,2]
[320028705,1711085285708,-327.9176,0.000178,2]
[320028706,1711085285731,-3000.0,0.0001782,2]
[320028707,1711085285753,-150.0,0.00017841,2]
[320028708,1711085285777,-160.0,0.00017842,2]
[320028709,1711085285800,-23890.0,0.00017842,2]
[320028710,1711085285822,-7557.28,0.00017842,2]
[320028711,1711085285851,-504.324417,0.00017856,2]
[320028712,1711085285876,-200.0,0.00017856,2]
[320028713,1711085285900,-309.95,0.00017866,2]
[320028714,1711085285923,-2500.0,0.000179,2]
[320028715,1711085285945,-2500.0,0.000179,2]
[320028716,1711085285967,-181.00662585,0.000179,2]
[320028717,1711085285989,-5174.77245373,0.000179,2]
[320028718,1711085286012,-5343.1381,0.000179,2]
[320028719,1711085286035,-4718.97285531,0.000179,2]
[320028720,1711085286057,-196.62754168,0.000179,2]
[320028721,1711085286083,-7378.92509817,0.00017998,2]
[320028722,1711085286106,-5583.10727351,0.00017999,2]
[320028723,1711085286131,-438.42219052,0.00017999,2]
[320028724,1711085286156,-43865.00900959,0.00018,2]
[320028725,1711085330427,2527.39311144,0.000135,2]
[320028726,1711085348408,2527.39311144,0.000135,2]
[320028731,1711085366408,1241.31442142,0.000135,2]
[320028735,1711085431467,-155.0,0.00015297,2]
[320028736,1711085431478,-546.32237878,0.00015298,2]
[320028737,1711085431487,-210.35762122,0.000179,2]
[320028738,1711085431592,-7289.64237878,0.000179,2]
[320028739,1711085431601,-86230.8758,0.000179,2]
[320028740,1711085431611,-259.84199531,0.00017998,2]
[320028741,1711085431620,-204.56346196,0.00017998,2]
[320028742,1711085431632,-375.79044902,0.00017999,2]
[320028743,1711085431642,-1472.2276046,0.00017999,2]
[320028744,1711085431651,-191752.66065308,0.00018,2]
[320028745,1711085431756,-4066.41679472,0.00018,2]
[320028746,1711085431772,-5796.08695719,0.00018,2]
[320028747,1711085431784,-576.24,0.00018,2]
[320028818,1711085437641,-45549.79801481,0.00018,2]
[320028819,1711085437656,-3546.21445584,0.00018,2]
[320028825,1711085439539,-322.10609916,0.00017999,2]
[320028826,1711085439549,-81237.98737514,0.00018,2]
[320028827,1711085439927,-352.28078192,0.00018,2]
[320028831,1711085442685,-769.61865015,0.00018,2]
[320028832,1711085442697,-1381.05676272,0.00018,2]
[320028833,1711085442742,-633.50112344,0.00018,2]
[320028834,1711085442800,-11173.74496625,0.00018,2]
[320028835,1711085442862,-3821.06127474,0.00018,2]
[320028846,1711085445528,-155.0,0.00017999,2]
[320028847,1711085445538,-57215.12411753,0.00018,2]
[320028848,1711085445549,-61449.99999999,0.00018,2]
[320028849,1711085445698,-1861.27339759,0.00018,2]
[320028850,1711085445924,-660.92335875,0.00018,2]
[320028866,1711085600800,1000.0,0.00022,30]
[320028885,1711086222935,-279.35,0.00017267,2]
[320028886,1711086222958,-150.0,0.00017563,2]
[320028887,1711086222980,-1570.65,0.0001758,2]
[320028888,1711086224145,-1608.35,0.0001758,2]
[320028889,1711086224167,-200.0,0.00017856,2]
[320028890,1711086224187,-150.0,0.00017899,2]
[320028891,1711086224208,-41.65,0.000179,2]
[320028892,1711086224402,-2000.0,0.000179,2]
[320028893,1711086224810,-2000.0,0.000179,2]
[320028894,1711086225335,-2000.0,0.000179,2]
[320028895,1711086293058,-400.0,0.00024,25]
[320028917,1711086631722,-387.98420604,0.000179,2]
[320028918,1711086631734,-570.05748927,0.000179,2]
[320028919,1711086631831,-3069.14130469,0.000179,2]
[320028920,1711086631841,-181.00662585,0.000179,2]
[320028921,1711086631851,-4775.71934539,0.000179,2]
[320028922,1711086631861,-263.69298984,0.00017998,2]
[320028923,1711086631872,-151.032214,0.00017998,2]
[320028924,1711086631881,-151.032214,0.00017998,2]
[320028925,1711086631890,-151.032214,0.00017998,2]
[320028926,1711086631900,-151.032214,0.00017998,2]
[320028927,1711086631909,-151.032214,0.00017998,2]
[320028928,1711086631918,-151.032214,0.00017998,2]
[320028929,1711086631928,-613.55627316,0.00017999,2]
[320028930,1711086631938,-322.10609916,0.00017999,2]
[320028931,1711086631948,-1247.3503112,0.00017999,5]
[320028932,1711086631957,-250.0,0.00017999,2]
[320028933,1711086631967,-7667.74579351,0.00018,2]
[320028934,1711086631978,-450.5,0.00018,2]
[320028935,1711086631998,-2421.1316563,0.00018,2]
[320028936,1711086632118,-464.421,0.00018,2]